fUST/lending_fUST_20260128
["ID","MTS","AMOUNT","RATE_DAILY","PERIOD"]
[403812502,1769550640246,-11573.07328361,0.00018024,2]
[403812504,1769550640261,-302.30627989,0.00018024,2]
[403812920,1769550644716,-151.0,0.000154,2]
[403812922,1769550644725,-151.0,0.000154,2]
[403812924,1769550644735,-151.0,0.000154,2]
[403812926,1769550644745,-19234.6204365,0.00018024,2]
[403812928,1769550644754,-2773.56790519,0.00018024,2]
[403812930,1769550644764,-151.0,0.00018024,2]
[403812932,1769550644774,-151.0,0.00018024,2]
[403812934,1769550644783,-700.602545,0.00018024,2]
[403812936,1769550644792,-700.602545,0.00018024,2]
[403812938,1769550644802,-700.602545,0.00018024,2]
[403812940,1769550644811,-700.602545,0.00018024,2]
[403812942,1769550644820,-151.0,0.00018024,2]
[403812944,1769550644830,-231.716554,0.00018024,2]
[403812946,1769550644839,-525.6594687,0.00018141,2]
[403812948,1769550644849,-712.0627452,0.000182,2]
[403812950,1769550644859,-870.56950999,0.00018319,2]
[403812952,1769550644868,-559.35137304,0.00018319,2]
[403812954,1769550644877,-1041.66666667,0.00018341,2]
[403812956,1769550644887,-300.0,0.00018383,2]
[403812958,1769550644897,-151.0,0.00018416,2]
[403812960,1769550644906,-595.37131296,0.00018572,2]
[403812962,1769550644916,-20995.29469939,0.00018572,2]
[403812964,1769550644931,-3503.81004537,0.00018572,2]
[403812968,1769550644959,-300.0,0.00018383,2]
[403812970,1769550644969,-260.0,0.00018572,2]
[403813038,1769550645862,-300.0,0.00018383,2]
[403813040,1769550645872,-199.80798747,0.00018383,2]
[403813042,1769550645883,-100.19201253,0.00018383,2]
[403813044,1769550645893,-7501.96525524,0.00018572,2]
[403813046,1769550645902,-2876.18991768,0.00018572,2]
[403813048,1769550645912,-151.0,0.00018572,2]
[403813050,1769550645924,-151.0,0.00018572,2]
[403813052,1769550645936,-700.602545,0.00018572,2]
[403813053,1769550645945,-700.602545,0.00018572,2]
[403813056,1769550645955,-700.602545,0.00018572,2]
[403813057,1769550645964,-700.602545,0.00018572,2]
[403813059,1769550645974,-151.0,0.00018572,2]
[403813061,1769550645983,-755.3549592,0.00018672,2]
[403813063,1769550645992,-151.0,0.00018965,2]
[403813065,1769550646002,-16604.45553403,0.00018998,2]
[403813067,1769550646011,-7755.56761074,0.00019,2]
[403813069,1769550646021,-617.40005154,0.0001912,2]
[403813071,1769550646030,-29825.36465412,0.0001912,2]
[403813073,1769550646042,-3629.36493588,0.0001912,2]
[403813075,1769550646051,-2982.60894464,0.0001912,2]
[403813077,1769550646060,-151.0,0.0001912,2]
[403813079,1769550646069,-151.0,0.0001912,2]
[403813081,1769550646078,-700.602545,0.0001912,2]
[403813083,1769550646087,-700.602545,0.0001912,2]
[403813085,1769550646096,-700.602545,0.0001912,2]
[403813087,1769550646105,-700.60254,0.0001912,2]
[403813089,1769550646114,-151.0,0.0001912,2]
[403813091,1769550646122,-151.0,0.00019178,2]
[403813093,1769550646131,-151.0,0.00019178,2]
[403813095,1769550646141,-151.0,0.00019178,2]
[403813097,1769550646150,-151.0,0.00019178,2]
[403813098,1769550646159,-151.0,0.00019178,2]
[403813099,1769550646168,-151.0,0.00019178,2]
[403813100,1769550646177,-151.0,0.00019178,2]
[403813101,1769550646187,-151.0,0.00019178,2]
[403813102,1769550646196,-152.972032,0.00019178,2]
[403813103,1769550646205,-151.0,0.00019178,2]
[403813104,1769550646214,-151.0,0.00019178,2]
[403813105,1769550646222,-151.0,0.00019178,2]
[403813106,1769550646231,-151.0,0.00019178,2]
[403813107,1769550646241,-153.402217,0.00019178,2]
[403813108,1769550646250,-151.33869,0.00019178,2]
[403813109,1769550646259,-151.0,0.00019178,2]
[403813110,1769550646268,-151.69617,0.00019178,2]
[403813111,1769550646277,-151.0,0.00019178,2]
[403813112,1769550646286,-151.0,0.00019178,2]
[403813113,1769550646296,-151.0,0.00019178,2]
[403813114,1769550646305,-196.085023,0.00019178,2]
[403813115,1769550646314,-151.0,0.00019178,2]
[403813116,1769550646323,-291.914687,0.00019178,2]
[403813117,1769550646332,-180.027684,0.00019178,2]
[403813118,1769550646341,-180.027684,0.00019178,2]
[403813119,1769550646350,-180.027684,0.00019178,2]
[403813120,1769550646359,-180.027684,0.00019178,2]
[403813121,1769550646368,-180.027684,0.00019178,2]
[403813122,1769550646377,-228.790219,0.00019178,2]
[403813123,1769550646386,-180.027684,0.00019178,2]
[403813124,1769550646395,-228.790219,0.00019178,2]
[403813125,1769550646404,-180.027684,0.00019178,2]
[403813126,1769550646413,-150.46066531,0.00019178,2]
[403813157,1769550668788,500.0,0.0003489,120]
[403813158,1769550674039,500.0,0.0003489,120]
[403813170,1769550681077,500.0,0.0003489,120]
[403813171,1769550689034,500.0,0.0003489,120]
[403813172,1769550690879,500.0,0.0003489,120]
[403813173,1769550692040,500.0,0.0003489,120]
[403813174,1769550697235,500.0,0.0003489,120]
[403813175,1769550697512,500.0,0.0003489,120]
[403813177,1769550710082,500.0,0.0003489,120]
[403813178,1769550712802,500.0,0.0003489,120]
[403813179,1769550715839,342.47106229,0.0003489,120]
[403813180,1769550724142,500.0,0.0003489,120]
[403813181,1769550724548,500.0,0.0003489,120]
[403813182,1769550728170,500.0,0.0003489,120]
[403813184,1769550730337,324.81135099,0.0003489,120]
[403813185,1769550732103,500.0,0.0003489,120]
[403813190,1769550732343,267.12,0.0003489,120]
[403813191,1769550733281,500.0,0.0003489,120]
[403813192,1769550734420,600.88526711,0.0003489,120]
[403813193,1769550734798,500.0,0.0003489,120]
[403813194,1769550743536,500.0,0.0003489,120]
[403813195,1769550747770,500.0,0.0003489,120]
[403813196,1769550748966,500.0,0.0003489,120]
[403813197,1769550751213,500.0,0.0003489,120]
[403813198,1769550755202,425.7749953,0.0003489,120]
[403813199,1769550756460,500.0,0.0003489,120]
[403813200,1769550758387,500.0,0.0003489,120]
[403813201,1769550763551,500.0,0.0003489,120]
[403813202,1769550765274,500.0,0.0003489,120]
[403813203,1769550766635,500.0,0.0003489,120]
[403813204,1769550770366,500.0,0.0003489,120]
[403813205,1769550772647,522.42276106,0.0003489,120]
[403813206,1769550775457,500.0,0.0003489,120]
[403813207,1769550776065,500.0,0.0003489,120]
[403813208,1769550776496,500.0,0.0003489,120]
[403813209,1769550777283,500.0,0.0003489,120]
[403813210,1769550779876,500.0,0.0003489,120]
[403813211,1769550780667,500.56964992,0.0003489,120]
[403813213,1769550786157,500.0,0.0003489,120]
[403813214,1769550790963,500.0,0.0003489,120]
[403813215,1769550794801,500.0,0.00034873,120]
[403813216,1769550795513,500.0,0.00034873,120]
[403813217,1769550795964,500.0,0.00034873,120]
[403813218,1769550796259,500.0,0.00034873,120]
[403813219,1769550805211,500.0,0.00034873,120]
[403813220,1769550813252,500.0,0.00034873,120]
[403813221,1769550813506,500.0,0.00034873,120]
[403813222,1769550817574,586.5,0.00034873,120]
[403813223,1769550820229,562.32753508,0.00034873,120]
[403813224,1769550827617,500.0,0.00034873,120]
[403813225,1769550827862,500.0,0.00034873,120]
[403813240,1769550840561,240.51399625,0.00034873,120]
[403813247,1769550843344,500.0,0.00034873,120]
[403813280,1769550850190,500.0,0.00034873,120]
[403813281,1769550850437,252.9115056,0.00034873,120]
[403813283,1769550853669,597.17,0.00034873,120]
[403813289,1769550870582,500.0,0.00034873,120]
[403813290,1769550870672,486.94532185,0.00034873,120]
[403813291,1769550872509,393.59778496,0.00034873,120]
[403813292,1769550872539,500.0,0.00034873,120]
[403813295,1769550883465,500.0,0.00034873,120]
[403813301,1769550900582,500.0,0.00034873,120]
[403813303,1769550904929,500.0,0.00034873,120]
[403813306,1769550913839,297.73673905,0.00034873,120]
[403813307,1769550917073,500.0,0.00034873,120]
[403813312,1769550920257,500.0,0.00034873,120]
[403813326,1769550922523,500.0,0.00034873,120]
[403813327,1769550922850,500.0,0.00034873,120]
[403813328,1769550925652,500.0,0.00034873,120]
[403813334,1769550942725,500.0,0.00034873,120]
[403813335,1769550945250,500.0,0.00034873,120]
[403813336,1769550946704,587.35,0.00034873,120]
[403813339,1769550953234,500.0,0.00034873,120]
[403813341,1769550958905,500.0,0.00034873,120]
[403813343,1769550965886,500.0,0.00034873,120]
[403813344,1769550966993,548.13503599,0.00034873,120]
[403813348,1769550980576,500.0,0.00034873,120]
[403813350,1769550982680,500.0,0.00034873,120]
[403813353,1769550983717,500.0,0.00034873,120]
[403813354,1769550987923,500.0,0.00034873,120]
[403813356,1769550993584,500.0,0.00034873,120]
[403813357,1769550998323,500.0,0.00034873,120]
[403813359,1769551003049,515.72615638,0.00034873,120]
[403813360,1769551006400,500.0,0.00034873,120]
[403813363,1769551009789,500.0,0.00034873,120]
[403813364,1769551011475,500.0,0.00034873,120]
[403813365,1769551015012,500.0,0.00034873,120]
[403813367,1769551019638,500.0,0.00034873,120]
[403813369,1769551021483,500.0,0.00034873,120]
[403813372,1769551026042,500.0,0.00034873,120]
[403813377,1769551038246,500.0,0.00034873,120]
[403813379,1769551040806,500.0,0.00034873,120]
[403813380,1769551043400,500.0,0.00034873,120]
[403813383,1769551049289,170.70420536,0.00034873,120]
[403813386,1769551057664,500.0,0.00034873,120]
[403813388,1769551064895,316.59588931,0.00034873,120]
[403813391,1769551075452,500.0,0.00034873,120]
[403813393,1769551079833,500.0,0.00034873,120]
[403813396,1769551090747,500.0,0.00034873,120]
[403813399,1769551097215,500.0,0.00034873,120]
[403813400,1769551097499,500.0,0.00034873,120]
[403813401,1769551097776,566.49,0.00034873,120]
[403813404,1769551107223,549.28851222,0.00034873,120]
[403813408,1769551115880,500.0,0.00034873,120]
[403813410,1769551122095,500.0,0.00034873,120]
[403813412,1769551125388,500.0,0.00034873,120]
[403813413,1769551125688,500.0,0.00034873,120]
[403813428,1769551174774,500.0,0.00034873,120]
[403813437,1769551201786,500.0,0.00034873,120]
[403813446,1769551220666,500.0,0.00034873,120]
[403813447,1769551222319,500.0,0.00034873,120]
[403813452,1769551234902,500.0,0.00034873,120]
[403813463,1769551256019,500.0,0.00034878,120]
[403813464,1769551259641,500.0,0.00034878,120]
[403813468,1769551269197,500.0,0.00034878,120]
[403813475,1769551286039,500.0,0.00034878,120]
[403813476,1769551286809,500.0,0.00034878,120]
[403813477,1769551291094,482.00270511,0.00034878,120]
[403813483,1769551298068,500.0,0.00034878,120]
[403813488,1769551304243,500.0,0.00034878,120]
[403813501,1769551324682,500.0,0.00034878,120]
[403813509,1769551336643,500.0,0.00034878,120]
[403813510,1769551338484,500.0,0.00034878,120]
[403813515,1769551345714,500.0,0.00034878,120]
[403813521,1769551351285,500.0,0.00034878,120]
[403813525,1769551356584,500.0,0.00034878,120]
[403813536,1769551367668,500.0,0.00034878,120]
[403813537,1769551372859,500.0,0.00034878,120]
[403813545,1769551379276,500.0,0.00034878,120]
[403813551,1769551385136,500.0,0.00034878,120]
[403813561,1769551405654,500.0,0.00034878,120]
[403813563,1769551410234,500.0,0.00034878,120]
[403813570,1769551427258,500.0,0.00034878,120]
[403813577,1769551433415,500.0,0.00034878,120]
[403813613,1769551489956,500.0,0.00034878,120]
[403813638,1769551506360,500.0,0.00034878,120]
[403813642,1769551536972,500.0,0.00034878,120]
[403813643,1769551551674,500.0,0.00034878,120]
[403813644,1769551551857,500.0,0.00034878,120]
[403813645,1769551551935,547.24,0.00034878,120]
[403813662,1769551644114,-605.0,0.00013065,2]
[403813663,1769551644136,-388.20406345,0.00013065,2]
[403813668,1769551654020,309.31667957,0.00034878,120]
[403813703,1769551831803,-605.0,0.00013065,2]
[403813705,1769551831813,-268.23383544,0.00013065,2]
[403813707,1769551831823,-265.81405952,0.0001327,2]
[403813709,1769551831836,-352.18594048,0.0001327,2]
[403813711,1769551831845,-300.0,0.00013271,2]
[403813712,1769551831855,-300.0,0.00013271,2]
[403813714,1769551831865,-300.0,0.00013271,2]
[403813716,1769551831874,-300.0,0.00013271,2]
[403813717,1769551831883,-351.68576469,0.00013272,2]
[403813718,1769551831893,-500.0,0.00013272,2]
[403813719,1769551831903,-572.01425963,0.00013272,2]
[403813720,1769551831912,-500.0,0.00013272,2]
[403813721,1769551831922,-317.58355809,0.00013272,2]
[403813722,1769551831933,-182.41644191,0.00013272,2]
[403813723,1769551831942,-500.0,0.00013272,2]
[403813724,1769551831951,-500.0,0.00013272,2]
[403813725,1769551831960,-632.4625651,0.00013272,2]
[403813726,1769551831969,-500.0,0.00013272,2]
[403813727,1769551831978,-547.28203942,0.00013272,2]
[403813729,1769551831987,-500.0,0.00013272,2]
[403813731,1769551831997,-500.0,0.00013272,2]
[403813733,1769551832006,-500.0,0.00013272,2]
[403813734,1769551832015,-262.82198157,0.00013272,2]
[403813735,1769551832026,-101.03348734,0.00013272,2]
[403813736,1769551832035,-500.0,0.00013272,2]
[403813737,1769551832045,-398.96651266,0.00013272,2]
[403813738,1769551832060,-101.03348734,0.00013272,2]
[403813739,1769551832071,-323.22592092,0.00013272,2]
[403813740,1769551832081,-500.0,0.00013272,2]
[403813741,1769551832090,-500.0,0.00013272,2]
[403813742,1769551832099,-278.60912922,0.00013273,2]
[403813743,1769551832109,-500.0,0.00013273,2]
[403813744,1769551832119,-500.0,0.00013273,2]
[403813745,1769551832128,-500.0,0.00013273,2]
[403813746,1769551832137,-500.0,0.00013273,2]
[403813747,1769551832147,-500.0,0.00013273,2]
[403813748,1769551832156,-500.0,0.00013273,2]
[403813749,1769551832166,-500.0,0.00013273,2]
[403813750,1769551832175,-500.0,0.00013273,2]
[403813751,1769551832184,-500.0,0.00013273,2]
[403813752,1769551832193,-500.0,0.00013273,2]
[403813753,1769551832203,-500.0,0.00013273,2]
[403813754,1769551832212,-500.0,0.00013273,2]
[403813755,1769551832221,-500.0,0.00013273,2]
[403813756,1769551832230,-500.0,0.00013273,2]
[403813757,1769551832240,-300.0,0.00013328,2]
[403813758,1769551832250,-300.0,0.00013328,2]
[403813759,1769551832259,-300.0,0.00013328,2]
[403813760,1769551832268,-300.0,0.00013328,2]
[403813761,1769551832277,-300.0,0.00013328,2]
[403813762,1769551832286,-300.0,0.00013328,2]
[403813763,1769551832295,-300.0,0.00013328,2]
[403813764,1769551832304,-300.0,0.00013328,2]
[403813765,1769551832314,-300.0,0.00013328,2]
[403813766,1769551832325,-300.0,0.00013328,2]
[403813767,1769551832335,-300.0,0.00013328,2]
[403813768,1769551832345,-300.0,0.00013328,2]
[403813769,1769551832354,-300.0,0.00013328,2]
[403813770,1769551832364,-300.0,0.00013328,2]
[403813771,1769551832373,-300.0,0.00013328,2]
[403813772,1769551832384,-600.0,0.00013537,2]
[403813773,1769551832394,-300.0,0.00013673,2]
[403813774,1769551832404,-1000.0,0.00013698,2]
[403813775,1769551832413,-500.0,0.00013699,2]
[403813776,1769551832422,-500.0,0.00013699,2]
[403813777,1769551832432,-500.0,0.00013699,2]
[403813778,1769551832441,-500.0,0.00013699,2]
[403813779,1769551832451,-500.0,0.00013699,2]
[403813780,1769551832460,-500.0,0.00013699,2]
[403813781,1769551832469,-500.0,0.00013699,2]
[403813782,1769551832478,-500.0,0.00013699,2]
[403813783,1769551832487,-500.0,0.00013699,2]
[403813784,1769551832498,-500.0,0.00013699,2]
[403813785,1769551832507,-500.0,0.00013699,2]
[403813786,1769551832516,-500.0,0.00013699,2]
[403813787,1769551832526,-500.0,0.00013699,2]
[403813788,1769551832535,-500.0,0.00013699,2]
[403813789,1769551832544,-356.03228176,0.00013699,2]
[403813790,1769551832554,-158.36079244,0.00013699,2]
[403813791,1769551832563,-500.0,0.00013699,2]
[403813792,1769551832572,-500.0,0.00013699,2]
[403813793,1769551832581,-500.0,0.00013699,2]
[403813794,1769551832590,-500.0,0.00013699,2]
[403813795,1769551832600,-450.59375074,0.00013699,2]
[403813796,1769551832609,-444.23488383,0.00013699,2]
[403813797,1769551832618,-500.0,0.00013699,2]
[403813798,1769551832627,-375.59928097,0.00013699,2]
[403813799,1769551832636,-500.0,0.00013699,2]
[403813800,1769551832645,-500.0,0.00013699,2]
[403813801,1769551832654,-500.0,0.00013699,2]
[403813802,1769551832662,-498.67567994,0.00013699,2]
[403813803,1769551832671,-500.0,0.00013699,2]
[403813804,1769551832680,-201.24189678,0.00013699,2]
[403813805,1769551832690,-720.0,0.00014891,2]
[403813806,1769551832699,-316.51592581,0.00015065,2]
[403813807,1769551832707,-1089.97455654,0.0001591,2]
[403813808,1769551832716,-2524.79635496,0.00015919,2]
[403813809,1769551832725,-756.15798963,0.00016169,2]
[403813810,1769551832734,-864.0,0.0001638,2]
[403813811,1769551832743,-364.79801619,0.00017065,2]
[403813812,1769551832752,-276.09065248,0.00017478,2]
[403813813,1769551832760,-190.49058657,0.00017478,2]
[403813814,1769551832769,-30000.0,0.00017479,2]
[403813815,1769551832778,-553.64373807,0.00017479,2]
[403813816,1769551832787,-500.0,0.00017479,2]
[403813817,1769551832795,-381.25855498,0.00017479,2]
[403813818,1769551832804,-201.93286099,0.00017479,2]
[403813819,1769551832813,-2674.60743027,0.00017479,2]
[403813820,1769551832821,-209.40437684,0.00017479,2]
[403813821,1769551832830,-217.15233878,0.00017479,2]
[403813822,1769551832838,-225.18697532,0.00017479,2]
[403813823,1769551832847,-233.51889341,0.00017479,2]
[403813824,1769551832856,-242.15909246,0.00017479,2]
[403813825,1769551832865,-251.11897888,0.00017479,2]
[403813826,1769551832874,-260.4103811,0.00017479,2]
[403813827,1769551832882,-270.0455652,0.00017479,2]
[403813828,1769551832891,-280.03725112,0.00017479,2]
[403813829,1769551832900,-290.39862941,0.00017479,2]
[403813830,1769551832909,-301.1433787,0.00017479,2]
[403813831,1769551832918,-1000.0,0.00018018,2]
[403813832,1769551832927,-10728.80262146,0.00018027,2]
[403813833,1769551832935,-574.12855637,0.00018027,2]
[403813834,1769551832944,-2773.56790519,0.00018027,2]
[403813835,1769551832953,-1041.66666667,0.00018423,2]
[403813836,1769551832962,-388.87875407,0.00018575,2]
[403813837,1769551832974,-2876.18991768,0.00018575,2]
[403813838,1769551832985,-335.09253586,0.00018644,2]
[403813839,1769551832996,-603.16656455,0.00018644,2]
[403813840,1769551833008,-1072.29611476,0.00018644,2]
[403813841,1769551833019,-1378.0,0.00018991,2]
[403813842,1769551833031,-1000.0,0.00018997,5]
[403813843,1769551833041,-1005.0257708,0.00019055,2]
[403813844,1769551833054,-372.9742292,0.00019055,2]
[403813845,1769551833064,-34.05647536,0.00019065,2]
[403813861,1769551838022,-379.02363121,0.00019065,2]
[403813862,1769551838033,-208.2915433,0.00019072,2]
[403813863,1769551838043,-723.2444158,0.00019072,2]
[403813864,1769551838053,-452.2694734,0.00019072,2]
[403813865,1769551838063,-205.6044713,0.00019072,2]
[403813866,1769551838074,-525.6594687,0.00019072,2]
[403813867,1769551838084,-2982.60894464,0.00019123,2]
[403813868,1769551838094,-151.0,0.00019178,2]
[403813869,1769551838106,-151.0,0.00019178,2]
[403813870,1769551838116,-151.0,0.00019178,2]
[403813871,1769551838128,-535.02160717,0.00019178,2]
[403813872,1769551838140,-842.97839283,0.00019178,2]
[403813873,1769551838150,-96.10979631,0.00019379,2]
[403813874,1769551838162,-445.045,0.00019379,2]
[403813876,1769551840208,-303.17,0.00019379,2]
[403814228,1769551846003,-2323.9281025,0.00019178,2]
[403814230,1769551846014,-533.67520369,0.00019379,2]
[403814232,1769551846024,-188.76,0.000195,2]
[403814234,1769551846034,-149.84993082,0.000195,2]
[403814236,1769551846046,-259.31,0.000195,2]
[403815065,1769551893413,500.0,0.00034878,120]
[403815066,1769551899819,500.0,0.00034878,120]
[403815067,1769551904868,500.0,0.00034878,120]
[403815068,1769551912427,477.21722427,0.00034878,120]
[403815069,1769551932150,193.75434229,0.00034878,120]
[403815071,1769551935170,534.63718151,0.00034878,120]
[403815072,1769551948458,487.48549524,0.00034878,120]
[403815073,1769551956703,361.68684497,0.00034878,120]
[403815074,1769551964832,500.0,0.00034878,120]
[403815075,1769551974317,500.0,0.00034878,120]
[403815076,1769551988640,500.0,0.00034878,120]
[403815077,1769551991933,500.0,0.00034878,120]
[403815078,1769551996143,500.0,0.00034878,120]
[403815079,1769551997143,500.0,0.00034878,120]
[403815080,1769552005767,500.0,0.00034878,120]
[403815081,1769552012165,500.0,0.00034878,120]
[403815082,1769552031474,562.07,0.00034878,120]
[403815083,1769552035511,500.0,0.00034878,120]
[403815084,1769552081276,210.64191258,0.00034878,120]
[403815085,1769552123258,562.88,0.00034878,120]
[403815086,1769552126198,159.71484559,0.00034878,120]
[403815087,1769552145374,500.0,0.00034878,120]
[403815088,1769552147675,500.0,0.00034878,120]
[403815089,1769552148332,177.08697502,0.00034878,120]
[403815090,1769552175992,560.82527297,0.00034878,120]
[403815091,1769552180426,500.0,0.00034878,120]
[403815092,1769552181485,500.0,0.00034878,120]
[403815093,1769552181741,235.16,0.00034878,120]
[403815094,1769552187092,612.84749342,0.00034878,120]
[403815095,1769552187124,500.0,0.00034878,120]
[403815096,1769552204646,500.0,0.00034878,120]
[403815097,1769552222228,500.0,0.00034878,120]
[403815098,1769552234946,500.0,0.00034878,120]
[403815099,1769552248000,500.0,0.00034878,120]
[403815100,1769552256094,500.0,0.00034878,120]
[403815101,1769552259241,500.0,0.00034878,120]
[403815102,1769552259455,500.0,0.00034878,120]
[403815103,1769552261287,223.65895808,0.00034878,120]
[403815104,1769552266686,500.0,0.00034878,120]
[403815105,1769552267963,500.0,0.00034878,120]
[403815106,1769552272014,500.0,0.00034878,120]
[403815107,1769552272470,586.02759152,0.00034878,120]
[403815108,1769552277986,500.0,0.00034878,120]
[403815109,1769552284934,500.0,0.00034878,120]
[403815110,1769552287131,500.0,0.00034878,120]
[403815111,1769552295209,500.0,0.00034878,120]
[403815112,1769552297856,500.0,0.00034886,120]
[403815113,1769552303991,500.0,0.00034886,120]
[403815114,1769552307384,500.0,0.00034886,120]
[403815115,1769552320690,552.10213248,0.00034886,120]
[403815116,1769552327435,500.0,0.00034886,120]
[403815117,1769552327643,500.0,0.00034886,120]
[403815118,1769552327694,234.64,0.00034886,120]
[403815119,1769552345922,500.0,0.00034886,120]
[403815120,1769552392146,500.0,0.00034886,120]
[403815121,1769552412467,500.0,0.00034886,120]
[403815122,1769552422292,500.0,0.00034886,120]
[403815123,1769552436039,500.0,0.00034886,120]
[403815124,1769552438455,500.0,0.00034886,120]
[403815126,1769552455790,500.0,0.00034886,120]
[403815127,1769552457149,150.0,0.00011502,2]
[403815128,1769552470798,500.0,0.00034886,120]
[403815129,1769552483338,322.02764858,0.00034886,120]
[403815130,1769552484339,500.0,0.00034886,120]
[403815131,1769552489955,500.0,0.00034886,120]
[403815132,1769552497585,500.0,0.00034886,120]
[403815133,1769552498202,500.0,0.00034886,120]
[403815134,1769552500014,552.56038066,0.00034886,120]
[403815135,1769552509432,500.0,0.00034886,120]
[403815136,1769552511846,349.52026366,0.00034886,120]
[403815137,1769552520593,500.0,0.00034886,120]
[403815138,1769552535498,500.0,0.00034886,120]
[403815139,1769552547050,500.0,0.00034886,120]
[403815140,1769552561542,500.0,0.00034886,120]
[403815141,1769552576233,500.0,0.00034886,120]
[403815142,1769552587013,501.15557506,0.00034886,120]
[403815143,1769552587713,500.0,0.00034886,120]
[403815144,1769552588323,500.0,0.00034886,120]
[403815145,1769552592059,500.0,0.00034886,120]
[403815146,1769552606743,500.0,0.00034886,120]
[403815147,1769552622500,500.0,0.00034886,120]
[403815148,1769552622755,614.55,0.00034886,120]
[403815149,1769552663216,572.29,0.00034886,120]
[403815150,1769552731784,500.0,0.00034886,120]
[403815151,1769552734996,500.0,0.00034886,120]
[403815154,1769552767655,500.0,0.00034886,120]
[403815155,1769552787509,500.0,0.00034886,120]
[403815156,1769552832103,18281.5537159,0.00034886,120]
[403815161,1769552892409,-261.63873612,0.000129,2]
[403815162,1769552892437,-1095.30289335,0.00012965,2]
[403815163,1769552892465,-604.0,0.00012965,2]
[403815164,1769552892494,-300.0,0.00012965,2]
[403815165,1769552892523,-500.0,0.00012966,2]
[403815166,1769552892553,-530.40579429,0.00012966,2]
[403815167,1769552892583,-500.0,0.00012966,2]
[403815168,1769552892611,-158.60801817,0.00012966,2]
[403815169,1769552892640,-500.0,0.00012966,2]
[403815170,1769552892672,-428.19780809,0.00012966,2]
[403815171,1769552895232,-480.0,0.00012966,2]
[403815172,1769552895260,-327.19657302,0.00012967,2]
[403815173,1769552895287,-300.0,0.00012967,2]
[403815210,1769553031990,-1182.36910284,0.00012837,2]
[403815211,1769553031999,-170.04508825,0.00012967,2]
[403815212,1769553032009,-604.0,0.00012967,2]
[403815213,1769553032018,-256.4059614,0.00013079,2]
[403815214,1769553032026,-500.0,0.00013191,2]
[403815215,1769553032036,-500.0,0.00013216,2]
[403815216,1769553032044,-300.0,0.00013225,2]
[403815217,1769553032053,-229.03760112,0.00013225,2]
[403815218,1769553032062,-300.0,0.00013226,2]
[403815219,1769553032071,-300.0,0.00013226,2]
[403815220,1769553032079,-300.0,0.00013226,2]
[403815221,1769553032088,-300.0,0.00013226,2]
[403815222,1769553032097,-300.0,0.00013226,2]
[403815223,1769553032106,-300.0,0.00013226,2]
[403815224,1769553032115,-300.0,0.00013226,2]